[Event "Chessable Masters - Torneo preliminare"]
[White "Grischuk, Alexander"]
[Black "Aditya, Mittal"]
[WhiteFideId "4126025"]
[BlackFideId "35042025"]
[WhiteElo "2731"]
[BlackElo "2386"]
[Result "1-0"]
[Round "9"]
[TimeControl "600+2"]
[Date "2023.03.13"]
[WhiteClock "0:00:19"]
[BlackClock "0:00:27"]

1. d4 {[%clk 0:09:56]}  Nf6 {[%clk 0:09:59]} 2. Nf3 {[%clk 0:09:54]}  d5 {[%clk 0:10:00]} 3. Bg5 {[%clk 0:09:55]}  c5 {[%clk 0:09:54]} 4. Bxf6 {[%clk 0:09:55]}  gxf6 {[%clk 0:09:55]} 5. dxc5 {[%clk 0:09:56]}  e6 {[%clk 0:09:55]} 6. e3 {[%clk 0:09:50]}  Bxc5 {[%clk 0:09:55]} 7. Nbd2 {[%clk 0:09:38]}  Nc6 {[%clk 0:09:43]} 8. Be2 {[%clk 0:09:15]}  e5 {[%clk 0:09:30]} 9. O-O {[%clk 0:08:59]}  Be6 {[%clk 0:09:30]} 10. c4 {[%clk 0:08:45]}  e4 {[%clk 0:08:57]} 11. Nh4 {[%clk 0:08:33]}  f5 {[%clk 0:08:51]} 12. cxd5 {[%clk 0:07:20]}  Qxd5 {[%clk 0:08:07]} 13. Bc4 {[%clk 0:07:20]}  Qd7 {[%clk 0:08:07]} 14. Qh5 {[%clk 0:06:10]}  O-O-O {[%clk 0:07:41]} 15. Rfd1 {[%clk 0:06:04]}  Bd6 {[%clk 0:07:13]} 16. Bb5 {[%clk 0:05:19]}  Qc7 {[%clk 0:05:59]} 17. Nxf5 {[%clk 0:04:59]}  Bxh2+ {[%clk 0:05:54]} 18. Qxh2 {[%clk 0:04:52]}  Bxf5 {[%clk 0:05:36]} 19. Bxc6 {[%clk 0:04:31]}  bxc6 {[%clk 0:05:16]} 20. Qh5 {[%clk 0:03:42]}  Rd5 {[%clk 0:05:08]} 21. Nb3 {[%clk 0:03:33]}  Rhd8 {[%clk 0:04:56]} 22. Rxd5 {[%clk 0:03:30]}  Rxd5 {[%clk 0:04:58]} 23. Nd4 {[%clk 0:02:57]}  Bg6 {[%clk 0:04:44]} 24. Qe2 {[%clk 0:02:41]}  Qb6 {[%clk 0:04:17]} 25. b4 {[%clk 0:02:28]}  Qxb4 {[%clk 0:03:44]} 26. Rc1 {[%clk 0:02:26]}  Kd7 {[%clk 0:03:22]} 27. Nxc6 {[%clk 0:02:09]}  Qd2 {[%clk 0:03:15]} 28. Qc4 {[%clk 0:02:09]}  Rf5 {[%clk 0:02:50]} 29. Rf1 {[%clk 0:01:36]}  Qd5 {[%clk 0:02:47]} 30. Nb8+ {[%clk 0:00:41]}  Ke7 {[%clk 0:02:46]} 31. Qc7+ {[%clk 0:00:43]}  Kf8 {[%clk 0:02:42]} 32. Nc6 {[%clk 0:00:41]}  Rg5 {[%clk 0:02:16]} 33. Nd4 {[%clk 0:00:42]}  Bh5 {[%clk 0:01:57]} 34. Qf4 {[%clk 0:00:40]}  Bf3 {[%clk 0:01:22]} 35. Ne6+ {[%clk 0:00:33]}  Qxe6 {[%clk 0:01:08]} 36. Qxg5 {[%clk 0:00:34]}  Be2 {[%clk 0:00:53]} 37. Rb1 {[%clk 0:00:29]}  Qd6 {[%clk 0:00:41]} 38. Qf4 {[%clk 0:00:23]}  Qd5 {[%clk 0:00:31]} 39. Qf6 {[%clk 0:00:20]}  Ke8 {[%clk 0:00:27]} 40. Rb8+ {[%clk 0:00:19]} 1-0


[Site "Internet"]

[Event "Chessable Masters - Torneo preliminare"]
[White "Mitrabha, Guha"]
[Black "Bortnyk, Olexandr"]
[WhiteFideId "5057000"]
[BlackFideId "14120828"]
[WhiteElo "2401"]
[BlackElo "2643"]
[Result "1/2-1/2"]
[Round "9"]
[TimeControl "600+2"]
[Date "2023.03.13"]
[WhiteClock "0:09:06"]
[BlackClock "0:06:13"]

1. d4 {[%clk 0:09:58]}  d6 {[%clk 0:09:58]} 2. Nf3 {[%clk 0:09:53]}  Nf6 {[%clk 0:10:00]} 3. g3 {[%clk 0:09:53]}  g6 {[%clk 0:10:01]} 4. Bg2 {[%clk 0:09:53]}  Bg7 {[%clk 0:10:02]} 5. O-O {[%clk 0:09:54]}  O-O {[%clk 0:10:04]} 6. b3 {[%clk 0:09:55]}  a5 {[%clk 0:10:04]} 7. a4 {[%clk 0:09:55]}  Nc6 {[%clk 0:10:00]} 8. Bb2 {[%clk 0:09:55]}  Bf5 {[%clk 0:10:00]} 9. Nbd2 {[%clk 0:09:56]}  Ne4 {[%clk 0:09:09]} 10. Nh4 {[%clk 0:09:51]}  Nxd2 {[%clk 0:09:01]} 11. Qxd2 {[%clk 0:09:49]}  Bd7 {[%clk 0:09:00]} 12. Rad1 {[%clk 0:09:45]}  Qc8 {[%clk 0:08:39]} 13. Rfe1 {[%clk 0:09:37]}  Bh3 {[%clk 0:08:37]} 14. Bh1 {[%clk 0:09:38]}  Re8 {[%clk 0:08:34]} 15. Nf3 {[%clk 0:09:06]}  Bg4 {[%clk 0:06:13]} 1/2-1/2


[Site "Internet"]

[Event "Chessable Masters - Torneo preliminare"]
[White "Perez Ponsa, Federico"]
[Black "Bok, Benjamin"]
[WhiteFideId "117927"]
[BlackFideId "1017063"]
[WhiteElo "2586"]
[BlackElo "2608"]
[Result "1/2-1/2"]
[Round "9"]
[TimeControl "600+2"]
[Date "2023.03.13"]
[WhiteClock "0:03:03"]
[BlackClock "0:00:29"]

1. e4 {[%clk 0:09:49]}  c5 {[%clk 0:10:00]} 2. Nf3 {[%clk 0:09:50]}  d6 {[%clk 0:10:01]} 3. d4 {[%clk 0:09:52]}  cxd4 {[%clk 0:10:03]} 4. Nxd4 {[%clk 0:09:54]}  Nf6 {[%clk 0:10:04]} 5. Nc3 {[%clk 0:09:56]}  a6 {[%clk 0:10:05]} 6. Be2 {[%clk 0:09:57]}  e5 {[%clk 0:10:06]} 7. Nb3 {[%clk 0:09:59]}  Be7 {[%clk 0:10:07]} 8. Bg5 {[%clk 0:10:00]}  Be6 {[%clk 0:09:57]} 9. Bxf6 {[%clk 0:09:59]}  Bxf6 {[%clk 0:09:59]} 10. Qd3 {[%clk 0:10:00]}  Be7 {[%clk 0:09:44]} 11. O-O-O {[%clk 0:10:00]}  Nd7 {[%clk 0:09:43]} 12. Nd5 {[%clk 0:10:01]}  Bxd5 {[%clk 0:09:40]} 13. Qxd5 {[%clk 0:10:02]}  Qc7 {[%clk 0:09:41]} 14. Kb1 {[%clk 0:10:03]}  O-O {[%clk 0:09:40]} 15. Nd2 {[%clk 0:10:04]}  b5 {[%clk 0:09:08]} 16. Nf1 {[%clk 0:09:55]}  Nb6 {[%clk 0:08:13]} 17. Qd3 {[%clk 0:09:44]}  Rfd8 {[%clk 0:06:59]} 18. Ne3 {[%clk 0:09:43]}  Bg5 {[%clk 0:06:59]} 19. Nd5 {[%clk 0:09:42]}  Nxd5 {[%clk 0:07:00]} 20. Qxd5 {[%clk 0:09:44]}  Rac8 {[%clk 0:07:01]} 21. c3 {[%clk 0:09:06]}  Qb6 {[%clk 0:06:54]} 22. h4 {[%clk 0:09:00]}  Bh6 {[%clk 0:06:50]} 23. Bh5 {[%clk 0:08:27]}  Rc7 {[%clk 0:05:29]} 24. a3 {[%clk 0:07:40]}  g6 {[%clk 0:04:30]} 25. Bf3 {[%clk 0:07:29]}  Qxf2 {[%clk 0:04:24]} 26. h5 {[%clk 0:07:29]}  Kg7 {[%clk 0:04:22]} 27. hxg6 {[%clk 0:07:29]}  hxg6 {[%clk 0:04:18]} 28. Rh3 {[%clk 0:07:14]}  Qc5 {[%clk 0:04:12]} 29. Qd3 {[%clk 0:07:06]}  Qc4 {[%clk 0:04:01]} 30. Qc2 {[%clk 0:07:00]}  Qe6 {[%clk 0:03:42]} 31. Rdh1 {[%clk 0:06:56]}  Rh8 {[%clk 0:03:42]} 32. g3 {[%clk 0:06:46]}  Qf6 {[%clk 0:03:23]} 33. Bd1 {[%clk 0:06:12]}  Rcc8 {[%clk 0:03:15]} 34. Qh2 {[%clk 0:06:08]}  Qg5 {[%clk 0:03:07]} 35. Bb3 {[%clk 0:06:08]}  Rcf8 {[%clk 0:02:49]} 36. Qf2 {[%clk 0:05:51]}  Qe3 {[%clk 0:01:52]} 37. Qxe3 {[%clk 0:05:28]}  Bxe3 {[%clk 0:01:54]} 38. Rxh8 {[%clk 0:05:29]}  Rxh8 {[%clk 0:01:56]} 39. Rxh8 {[%clk 0:05:31]}  Kxh8 {[%clk 0:01:57]} 40. Bxf7 {[%clk 0:05:32]}  Kg7 {[%clk 0:01:58]} 41. Be6 {[%clk 0:05:32]}  Kf6 {[%clk 0:01:43]} 42. Bc8 {[%clk 0:05:31]}  a5 {[%clk 0:01:41]} 43. b4 {[%clk 0:05:21]}  axb4 {[%clk 0:01:40]} 44. axb4 {[%clk 0:05:22]}  Bf2 {[%clk 0:01:28]} 45. g4 {[%clk 0:05:18]}  Kg5 {[%clk 0:01:25]} 46. Kc2 {[%clk 0:05:18]}  Kf4 {[%clk 0:01:18]} 47. Kd3 {[%clk 0:05:18]}  Be1 {[%clk 0:00:53]} 48. Bd7 {[%clk 0:05:13]}  Kf3 {[%clk 0:00:34]} 49. Be8 {[%clk 0:04:44]}  Kxg4 {[%clk 0:00:20]} 50. Bxg6 {[%clk 0:04:44]}  Kg5 {[%clk 0:00:22]} 51. Be8 {[%clk 0:04:34]}  Kf6 {[%clk 0:00:24]} 52. Bxb5 {[%clk 0:04:29]}  Ke7 {[%clk 0:00:25]} 53. Kc4 {[%clk 0:03:47]}  Kd8 {[%clk 0:00:25]} 54. Ba4 {[%clk 0:03:44]}  Kc7 {[%clk 0:00:26]} 55. Bd1 {[%clk 0:03:46]}  Kb6 {[%clk 0:00:23]} 56. Bh5 {[%clk 0:03:47]}  Kc7 {[%clk 0:00:21]} 57. Bf7 {[%clk 0:03:48]}  Kb6 {[%clk 0:00:21]} 58. Be8 {[%clk 0:03:48]}  Kc7 {[%clk 0:00:22]} 59. Kb3 {[%clk 0:03:47]}  Kb6 {[%clk 0:00:22]} 60. Bf7 {[%clk 0:03:47]}  Kc7 {[%clk 0:00:21]} 61. Be6 {[%clk 0:03:47]}  Kb6 {[%clk 0:00:22]} 62. Bd5 {[%clk 0:03:49]}  Kc7 {[%clk 0:00:23]} 63. Kc2 {[%clk 0:02:53]}  Kb6 {[%clk 0:00:24]} 64. Kd3 {[%clk 0:02:55]}  Kc7 {[%clk 0:00:25]} 65. Bb3 {[%clk 0:02:48]}  Kb6 {[%clk 0:00:26]} 66. Kc4 {[%clk 0:02:50]}  Bd2 {[%clk 0:00:18]} 67. Bd1 {[%clk 0:02:49]}  Be1 {[%clk 0:00:19]} 68. Bh5 {[%clk 0:02:48]}  Bd2 {[%clk 0:00:20]} 69. Be8 {[%clk 0:02:49]}  Be1 {[%clk 0:00:21]} 70. Kd3 {[%clk 0:02:51]}  Kc7 {[%clk 0:00:21]} 71. Ba4 {[%clk 0:02:51]}  Kb6 {[%clk 0:00:22]} 72. Kc4 {[%clk 0:02:53]}  Bd2 {[%clk 0:00:22]} 73. Bc2 {[%clk 0:02:53]}  Be1 {[%clk 0:00:23]} 74. Bd3 {[%clk 0:02:55]}  Bd2 {[%clk 0:00:24]} 75. b5 {[%clk 0:02:56]}  Be3 {[%clk 0:00:23]} 76. Kd5 {[%clk 0:02:57]}  Bc5 {[%clk 0:00:24]} 77. c4 {[%clk 0:02:57]}  Ba3 {[%clk 0:00:25]} 78. Be2 {[%clk 0:02:57]}  Bc5 {[%clk 0:00:26]} 79. Bd3 {[%clk 0:02:59]}  Ba3 {[%clk 0:00:27]} 80. Be2 {[%clk 0:03:01]}  Bc5 {[%clk 0:00:29]} 81. Bd3 {[%clk 0:03:03]} 1/2-1/2


[Site "Internet"]

[Event "Chessable Masters - Torneo preliminare"]
[White "Petrov, Nikita"]
[Black "Drozdowski, Kacper"]
[WhiteFideId "4101286"]
[BlackFideId "1136720"]
[WhiteElo "2514"]
[BlackElo "2472"]
[Result "1/2-1/2"]
[Round "9"]
[TimeControl "600+2"]
[Date "2023.03.13"]
[WhiteClock "0:00:19"]
[BlackClock "0:01:08"]

1. d4 {[%clk 0:10:01]}  d5 {[%clk 0:10:00]} 2. Nf3 {[%clk 0:10:02]}  Nf6 {[%clk 0:10:01]} 3. Bf4 {[%clk 0:10:02]}  Bf5 {[%clk 0:09:58]} 4. c4 {[%clk 0:10:03]}  e6 {[%clk 0:09:30]} 5. Nc3 {[%clk 0:09:58]}  c6 {[%clk 0:09:19]} 6. e3 {[%clk 0:09:50]}  Nbd7 {[%clk 0:09:16]} 7. Qb3 {[%clk 0:09:43]}  b6 {[%clk 0:08:22]} 8. cxd5 {[%clk 0:09:34]}  exd5 {[%clk 0:08:13]} 9. Ba6 {[%clk 0:09:21]}  Be7 {[%clk 0:06:17]} 10. Bb7 {[%clk 0:09:16]}  O-O {[%clk 0:05:50]} 11. Bxc6 {[%clk 0:08:24]}  Rc8 {[%clk 0:05:46]} 12. Bb5 {[%clk 0:08:25]}  Nb8 {[%clk 0:05:31]} 13. Bxb8 {[%clk 0:08:10]}  Rxb8 {[%clk 0:05:31]} 14. Ne5 {[%clk 0:08:12]}  Qd6 {[%clk 0:05:17]} 15. O-O {[%clk 0:08:05]}  h5 {[%clk 0:04:54]} 16. Rac1 {[%clk 0:08:01]}  Be6 {[%clk 0:04:26]} 17. Be2 {[%clk 0:07:52]}  Rb7 {[%clk 0:03:42]} 18. Ba6 {[%clk 0:07:41]}  Rc7 {[%clk 0:03:25]} 19. Nb5 {[%clk 0:07:40]}  Rxc1 {[%clk 0:03:26]} 20. Nxd6 {[%clk 0:05:58]}  Rxf1+ {[%clk 0:03:26]} 21. Kxf1 {[%clk 0:06:00]}  Bxd6 {[%clk 0:03:27]} 22. Qc2 {[%clk 0:05:42]}  Ne4 {[%clk 0:03:14]} 23. Nf3 {[%clk 0:04:08]}  Bd7 {[%clk 0:02:55]} 24. a4 {[%clk 0:03:48]}  g6 {[%clk 0:02:39]} 25. b3 {[%clk 0:03:48]}  Kg7 {[%clk 0:02:37]} 26. h3 {[%clk 0:03:43]}  Rd8 {[%clk 0:02:34]} 27. Bb7 {[%clk 0:03:38]}  Be6 {[%clk 0:02:27]} 28. Ba6 {[%clk 0:03:36]}  Bd7 {[%clk 0:02:27]} 29. Ne5 {[%clk 0:03:09]}  Bf5 {[%clk 0:02:19]} 30. Nd3 {[%clk 0:02:29]}  Rd7 {[%clk 0:02:13]} 31. Qc6 {[%clk 0:01:01]}  Be6 {[%clk 0:02:11]} 32. Qc2 {[%clk 0:00:49]}  Rc7 {[%clk 0:02:11]} 33. Qb2 {[%clk 0:00:50]}  Bf5 {[%clk 0:01:58]} 34. Nc5 {[%clk 0:00:30]}  Nf6 {[%clk 0:01:45]} 35. b4 {[%clk 0:00:30]}  Be7 {[%clk 0:01:33]} 36. Nd3 {[%clk 0:00:27]}  Ne4 {[%clk 0:01:27]} 37. Ne1 {[%clk 0:00:19]}  Bh4 {[%clk 0:01:19]} 38. g3 {[%clk 0:00:18]}  Bxh3+ {[%clk 0:01:18]} 39. Kg1 {[%clk 0:00:19]}  Be7 {[%clk 0:01:14]} 40. Bd3 {[%clk 0:00:19]}  Nf6 {[%clk 0:01:08]} 41. Ng2 {[%clk 0:00:19]} 1/2-1/2


[Site "Internet"]

[Event "Chessable Masters - Torneo preliminare"]
[White "Van Foreest, Lucas"]
[Black "Tari, Aryan"]
[WhiteFideId "1039792"]
[BlackFideId "1510045"]
[WhiteElo "2483"]
[BlackElo "2539"]
[Result "0-1"]
[Round "9"]
[TimeControl "600+2"]
[Date "2023.03.13"]
[WhiteClock "0:00:03"]
[BlackClock "0:00:07"]

1. d4 {[%clk 0:09:51]}  d5 {[%clk 0:09:52]} 2. c4 {[%clk 0:09:45]}  e6 {[%clk 0:09:53]} 3. Nc3 {[%clk 0:09:41]}  c5 {[%clk 0:09:48]} 4. cxd5 {[%clk 0:09:25]}  cxd4 {[%clk 0:09:40]} 5. Qxd4 {[%clk 0:09:16]}  Nc6 {[%clk 0:09:26]} 6. Qd1 {[%clk 0:08:44]}  exd5 {[%clk 0:09:24]} 7. Qxd5 {[%clk 0:08:46]}  Bd6 {[%clk 0:08:51]} 8. e3 {[%clk 0:08:20]}  Nf6 {[%clk 0:08:50]} 9. Qd1 {[%clk 0:08:12]}  O-O {[%clk 0:08:43]} 10. Nf3 {[%clk 0:08:12]}  Qe7 {[%clk 0:08:40]} 11. Be2 {[%clk 0:08:09]}  Rd8 {[%clk 0:08:38]} 12. Bd2 {[%clk 0:08:10]}  Ne5 {[%clk 0:08:02]} 13. Nd4 {[%clk 0:07:50]}  Nc6 {[%clk 0:07:48]} 14. Nf3 {[%clk 0:07:48]}  a6 {[%clk 0:07:42]} 15. O-O {[%clk 0:07:43]}  b5 {[%clk 0:07:43]} 16. a3 {[%clk 0:07:28]}  Bf5 {[%clk 0:07:28]} 17. Rc1 {[%clk 0:07:26]}  Rac8 {[%clk 0:07:27]} 18. Nd4 {[%clk 0:07:03]}  Nxd4 {[%clk 0:07:22]} 19. exd4 {[%clk 0:07:05]}  h5 {[%clk 0:05:12]} 20. Re1 {[%clk 0:06:47]}  Bb8 {[%clk 0:04:58]} 21. Be3 {[%clk 0:04:30]}  Ng4 {[%clk 0:04:36]} 22. Bxg4 {[%clk 0:04:20]}  Bxg4 {[%clk 0:04:24]} 23. f3 {[%clk 0:04:15]}  Bf5 {[%clk 0:03:57]} 24. Bf4 {[%clk 0:04:00]}  Qf6 {[%clk 0:02:48]} 25. Bxb8 {[%clk 0:03:55]}  Rxb8 {[%clk 0:02:43]} 26. Re5 {[%clk 0:03:35]}  Be6 {[%clk 0:02:28]} 27. Ne4 {[%clk 0:03:33]}  Qf4 {[%clk 0:02:24]} 28. g3 {[%clk 0:03:27]}  Qe3+ {[%clk 0:02:17]} 29. Nf2 {[%clk 0:03:28]}  Qxd4 {[%clk 0:02:14]} 30. Qxd4 {[%clk 0:03:28]}  Rxd4 {[%clk 0:02:16]} 31. Kf1 {[%clk 0:03:10]}  b4 {[%clk 0:02:13]} 32. axb4 {[%clk 0:02:31]}  Rdxb4 {[%clk 0:01:35]} 33. Nd1 {[%clk 0:02:31]}  g6 {[%clk 0:01:24]} 34. Ra5 {[%clk 0:02:23]}  Rd8 {[%clk 0:01:23]} 35. Ke1 {[%clk 0:02:24]}  Rd3 {[%clk 0:01:16]} 36. Rc3 {[%clk 0:01:33]}  Rxc3 {[%clk 0:01:15]} 37. bxc3 {[%clk 0:01:31]}  Rb6 {[%clk 0:01:10]} 38. Ne3 {[%clk 0:01:33]}  Rb1+ {[%clk 0:01:08]} 39. Kd2 {[%clk 0:01:32]}  Rb2+ {[%clk 0:01:09]} 40. Kd3 {[%clk 0:01:10]}  Rxh2 {[%clk 0:01:09]} 41. Rxa6 {[%clk 0:01:12]}  Rh3 {[%clk 0:01:08]} 42. Ke4 {[%clk 0:00:27]}  Rxg3 {[%clk 0:01:07]} 43. Ra1 {[%clk 0:00:29]}  Rh3 {[%clk 0:00:42]} 44. c4 {[%clk 0:00:23]}  Kg7 {[%clk 0:00:24]} 45. c5 {[%clk 0:00:24]}  Kf6 {[%clk 0:00:19]} 46. c6 {[%clk 0:00:08]}  Ke7 {[%clk 0:00:21]} 47. Nd5+ {[%clk 0:00:05]}  Kd6 {[%clk 0:00:22]} 48. Nf4 {[%clk 0:00:06]}  Bf5+ {[%clk 0:00:19]} 49. Ke3 {[%clk 0:00:07]}  Rh2 {[%clk 0:00:20]} 50. Rc1 {[%clk 0:00:08]}  Rc2 {[%clk 0:00:20]} 51. Rxc2 {[%clk 0:00:08]}  Bxc2 {[%clk 0:00:22]} 52. Ne2 {[%clk 0:00:05]}  Ba4 {[%clk 0:00:21]} 53. Kf4 {[%clk 0:00:06]}  Bxc6 {[%clk 0:00:22]} 54. Nd4 {[%clk 0:00:07]}  Bd5 {[%clk 0:00:21]} 55. Ne2 {[%clk 0:00:08]}  f6 {[%clk 0:00:19]} 56. Nd4 {[%clk 0:00:08]}  Ke7 {[%clk 0:00:19]} 57. Kg3 {[%clk 0:00:08]}  g5 {[%clk 0:00:18]} 58. Nf5+ {[%clk 0:00:08]}  Kf7 {[%clk 0:00:18]} 59. f4 {[%clk 0:00:09]}  h4+ {[%clk 0:00:16]} 60. Kg4 {[%clk 0:00:04]}  h3 {[%clk 0:00:05]} 61. Kxh3 {[%clk 0:00:04]}  Be6 {[%clk 0:00:06]} 62. fxg5 {[%clk 0:00:03]}  fxg5 {[%clk 0:00:07]} 0-1


[Site "Internet"]

[Event "Chessable Masters - Torneo preliminare"]
[White "Mareco, Sandro"]
[Black "Lobanov, Sergei"]
[WhiteFideId "112275"]
[BlackFideId "24183750"]
[WhiteElo "2541"]
[BlackElo "2436"]
[Result "0-1"]
[Round "9"]
[TimeControl "600+2"]
[Date "2023.03.13"]
[WhiteClock "0:00:29"]
[BlackClock "0:01:07"]

1. d4 {[%clk 0:10:01]}  Nf6 {[%clk 0:10:00]} 2. c4 {[%clk 0:10:03]}  e6 {[%clk 0:10:01]} 3. Nf3 {[%clk 0:10:04]}  d5 {[%clk 0:10:02]} 4. g3 {[%clk 0:10:05]}  Be7 {[%clk 0:10:02]} 5. Bg2 {[%clk 0:10:06]}  O-O {[%clk 0:10:04]} 6. O-O {[%clk 0:10:07]}  dxc4 {[%clk 0:10:06]} 7. Qc2 {[%clk 0:10:08]}  a6 {[%clk 0:10:07]} 8. a4 {[%clk 0:10:09]}  Nc6 {[%clk 0:10:08]} 9. Qxc4 {[%clk 0:10:10]}  Qd5 {[%clk 0:10:10]} 10. Nbd2 {[%clk 0:10:11]}  Rd8 {[%clk 0:10:09]} 11. e3 {[%clk 0:10:12]}  Qh5 {[%clk 0:10:10]} 12. h3 {[%clk 0:10:11]}  g5 {[%clk 0:09:56]} 13. Ne5 {[%clk 0:09:52]}  Nxe5 {[%clk 0:08:53]} 14. dxe5 {[%clk 0:09:52]}  Nd5 {[%clk 0:08:54]} 15. Ne4 {[%clk 0:09:10]}  b5 {[%clk 0:08:53]} 16. Qb3 {[%clk 0:08:58]}  Bd7 {[%clk 0:08:26]} 17. axb5 {[%clk 0:08:17]}  Bxb5 {[%clk 0:08:26]} 18. Re1 {[%clk 0:07:48]}  Rab8 {[%clk 0:08:16]} 19. Bd2 {[%clk 0:07:32]}  Qg6 {[%clk 0:06:10]} 20. Qc2 {[%clk 0:07:25]}  h5 {[%clk 0:06:10]} 21. Rec1 {[%clk 0:07:13]}  h4 {[%clk 0:05:56]} 22. g4 {[%clk 0:07:08]}  Qg7 {[%clk 0:05:26]} 23. f4 {[%clk 0:07:04]}  c5 {[%clk 0:05:24]} 24. Nxc5 {[%clk 0:05:36]}  Bxc5 {[%clk 0:05:14]} 25. Qxc5 {[%clk 0:05:36]}  Nxf4 {[%clk 0:05:16]} 26. exf4 {[%clk 0:05:37]}  Rxd2 {[%clk 0:05:16]} 27. Qe3 {[%clk 0:05:29]}  Rbd8 {[%clk 0:04:59]} 28. fxg5 {[%clk 0:05:01]}  Re2 {[%clk 0:04:00]} 29. Qf4 {[%clk 0:04:49]}  Qxe5 {[%clk 0:03:51]} 30. Qxe5 {[%clk 0:04:41]}  Rxe5 {[%clk 0:03:53]} 31. g6 {[%clk 0:04:40]}  fxg6 {[%clk 0:03:52]} 32. Rc7 {[%clk 0:04:39]}  Rd2 {[%clk 0:03:35]} 33. Rac1 {[%clk 0:04:38]}  Rd7 {[%clk 0:03:02]} 34. Rc8+ {[%clk 0:04:18]}  Kg7 {[%clk 0:03:03]} 35. Rb8 {[%clk 0:04:19]}  Re3 {[%clk 0:02:51]} 36. Rbc8 {[%clk 0:01:47]}  Rd2 {[%clk 0:01:46]} 37. R1c7+ {[%clk 0:01:36]}  Kf6 {[%clk 0:01:38]} 38. Rf8+ {[%clk 0:01:29]}  Kg5 {[%clk 0:01:30]} 39. Rc5+ {[%clk 0:01:23]}  e5 {[%clk 0:01:31]} 40. Bf1 {[%clk 0:00:29]}  Re1 {[%clk 0:01:07]} 0-1


[Site "Internet"]

[Event "Chessable Masters - Torneo preliminare"]
[White "Guseinov, Gadir"]
[Black "Christiansen, Johan-Sebastian"]
[WhiteFideId "13401378"]
[BlackFideId "1512668"]
[WhiteElo "2632"]
[BlackElo "2481"]
[Result "1/2-1/2"]
[Round "9"]
[TimeControl "600+2"]
[Date "2023.03.13"]
[WhiteClock "0:00:21"]
[BlackClock "0:02:14"]

1. e4 {[%clk 0:10:01]}  e5 {[%clk 0:09:58]} 2. Nf3 {[%clk 0:10:02]}  Nc6 {[%clk 0:09:59]} 3. Bb5 {[%clk 0:09:58]}  f5 {[%clk 0:10:00]} 4. d3 {[%clk 0:09:46]}  Nf6 {[%clk 0:10:01]} 5. O-O {[%clk 0:09:43]}  fxe4 {[%clk 0:10:01]} 6. dxe4 {[%clk 0:09:45]}  Bc5 {[%clk 0:10:03]} 7. Qd3 {[%clk 0:09:35]}  d6 {[%clk 0:10:04]} 8. Qc4 {[%clk 0:09:25]}  Bd7 {[%clk 0:09:55]} 9. Nc3 {[%clk 0:08:29]}  Qe7 {[%clk 0:09:48]} 10. Nd5 {[%clk 0:08:11]}  Nxd5 {[%clk 0:09:49]} 11. exd5 {[%clk 0:08:13]}  Nd4 {[%clk 0:09:50]} 12. Bxd7+ {[%clk 0:08:06]}  Qxd7 {[%clk 0:09:50]} 13. Nxd4 {[%clk 0:08:07]}  Bxd4 {[%clk 0:09:51]} 14. Be3 {[%clk 0:08:04]}  Bxe3 {[%clk 0:09:52]} 15. fxe3 {[%clk 0:08:05]}  O-O-O {[%clk 0:09:53]} 16. a4 {[%clk 0:07:58]}  Rdf8 {[%clk 0:09:52]} 17. Qe4 {[%clk 0:07:55]}  g6 {[%clk 0:09:06]} 18. h3 {[%clk 0:07:52]}  Kb8 {[%clk 0:08:46]} 19. b3 {[%clk 0:07:50]}  a6 {[%clk 0:08:24]} 20. Kh2 {[%clk 0:07:41]}  Qe7 {[%clk 0:08:19]} 21. g3 {[%clk 0:07:19]}  Rf6 {[%clk 0:08:08]} 22. Qh4 {[%clk 0:07:00]}  Rhf8 {[%clk 0:08:08]} 23. Rxf6 {[%clk 0:06:59]}  Qxf6 {[%clk 0:06:33]} 24. Qxf6 {[%clk 0:06:59]}  Rxf6 {[%clk 0:06:35]} 25. Kg2 {[%clk 0:07:00]}  e4 {[%clk 0:06:08]} 26. Rf1 {[%clk 0:06:52]}  Rxf1 {[%clk 0:06:06]} 27. Kxf1 {[%clk 0:06:54]}  Ka7 {[%clk 0:05:54]} 28. a5 {[%clk 0:06:10]}  c6 {[%clk 0:05:37]} 29. c4 {[%clk 0:05:58]}  c5 {[%clk 0:05:35]} 30. Ke2 {[%clk 0:00:54]}  b6 {[%clk 0:05:28]} 31. Kd2 {[%clk 0:00:40]}  bxa5 {[%clk 0:05:22]} 32. Kc3 {[%clk 0:00:41]}  Kb6 {[%clk 0:05:16]} 33. Kb2 {[%clk 0:00:38]}  g5 {[%clk 0:04:45]} 34. Ka3 {[%clk 0:00:20]}  Kc7 {[%clk 0:04:28]} 35. Ka2 {[%clk 0:00:19]}  Kb6 {[%clk 0:04:29]} 36. Ka3 {[%clk 0:00:21]}  Kc7 {[%clk 0:04:30]} 37. Ka4 {[%clk 0:00:22]}  Kb6 {[%clk 0:04:31]} 38. g4 {[%clk 0:00:22]}  h6 {[%clk 0:04:30]} 39. Ka3 {[%clk 0:00:23]}  Kc7 {[%clk 0:04:26]} 40. Kb2 {[%clk 0:00:24]}  Kb6 {[%clk 0:04:27]} 41. Ka2 {[%clk 0:00:23]}  Ka7 {[%clk 0:03:29]} 42. Ka3 {[%clk 0:00:16]}  Kb7 {[%clk 0:03:28]} 43. Kb2 {[%clk 0:00:15]}  Kc7 {[%clk 0:03:27]} 44. Kc2 {[%clk 0:00:13]}  Kc8 {[%clk 0:03:26]} 45. Kc1 {[%clk 0:00:13]}  Kd8 {[%clk 0:03:24]} 46. Kd1 {[%clk 0:00:13]}  Kd7 {[%clk 0:03:24]} 47. Kd2 {[%clk 0:00:14]}  Kc7 {[%clk 0:03:25]} 48. Kc2 {[%clk 0:00:12]}  Kb6 {[%clk 0:03:26]} 49. Kc3 {[%clk 0:00:13]}  Kb7 {[%clk 0:03:26]} 50. Kc2 {[%clk 0:00:11]}  Kb6 {[%clk 0:03:26]} 51. Kb2 {[%clk 0:00:10]}  a4 {[%clk 0:03:13]} 52. bxa4 {[%clk 0:00:08]}  Ka5 {[%clk 0:03:13]} 53. Kb3 {[%clk 0:00:09]}  Kb6 {[%clk 0:03:14]} 54. Ka3 {[%clk 0:00:07]}  Ka5 {[%clk 0:03:14]} 55. Kb3 {[%clk 0:00:08]}  Kb6 {[%clk 0:03:16]} 56. a5+ {[%clk 0:00:07]}  Kxa5 {[%clk 0:03:17]} 57. Ka3 {[%clk 0:00:08]}  Kb6 {[%clk 0:03:17]} 58. Ka4 {[%clk 0:00:10]}  Kb7 {[%clk 0:03:17]} 59. Ka5 {[%clk 0:00:11]}  Ka7 {[%clk 0:03:18]} 60. Ka4 {[%clk 0:00:12]}  Kb6 {[%clk 0:03:19]} 61. Kb3 {[%clk 0:00:13]}  Ka5 {[%clk 0:02:34]} 62. Ka3 {[%clk 0:00:14]}  Kb6 {[%clk 0:02:36]} 63. Kb3 {[%clk 0:00:14]}  a5 {[%clk 0:02:37]} 64. Ka3 {[%clk 0:00:14]}  Ka6 {[%clk 0:02:37]} 65. Kb3 {[%clk 0:00:15]}  Kb6 {[%clk 0:02:38]} 66. Ka4 {[%clk 0:00:16]}  Ka6 {[%clk 0:02:39]} 67. Ka3 {[%clk 0:00:17]}  a4 {[%clk 0:02:33]} 68. Kxa4 {[%clk 0:00:17]}  Kb6 {[%clk 0:02:34]} 69. Ka3 {[%clk 0:00:18]}  Ka5 {[%clk 0:02:34]} 70. Kb3 {[%clk 0:00:19]}  Kb6 {[%clk 0:02:34]} 71. Kb2 {[%clk 0:00:21]}  Ka6 {[%clk 0:02:33]} 72. Ka2 {[%clk 0:00:21]}  Kb7 {[%clk 0:02:30]} 73. Kb1 {[%clk 0:00:22]}  Kb8 {[%clk 0:02:29]} 74. Kc1 {[%clk 0:00:22]}  Kc8 {[%clk 0:02:30]} 75. Kd1 {[%clk 0:00:23]}  Kd8 {[%clk 0:02:26]} 76. Kd2 {[%clk 0:00:23]}  Kc7 {[%clk 0:02:26]} 77. Kd1 {[%clk 0:00:22]}  Kb6 {[%clk 0:02:15]} 78. Kc2 {[%clk 0:00:22]}  Ka7 {[%clk 0:02:16]} 79. Kb2 {[%clk 0:00:23]}  Kb7 {[%clk 0:02:16]} 80. Ka2 {[%clk 0:00:23]}  Kc8 {[%clk 0:02:09]} 81. Ka3 {[%clk 0:00:19]}  Kb7 {[%clk 0:02:11]} 82. Kb2 {[%clk 0:00:20]}  Kb6 {[%clk 0:02:10]} 83. Kc3 {[%clk 0:00:17]}  Ka5 {[%clk 0:02:10]} 84. Kb3 {[%clk 0:00:18]}  Ka6 {[%clk 0:02:11]} 85. Ka4 {[%clk 0:00:19]}  Kb6 {[%clk 0:02:13]} 86. Ka3 {[%clk 0:00:20]}  Ka5 {[%clk 0:02:14]} 87. Kb3 {[%clk 0:00:21]} 1/2-1/2


[Site "Internet"]